[Event "FIDE U16 Olympiad_boards_81-124"]
[Site "Eindhoven, Netherlands"]
[Date "2023.08.14"]
[Round "3.11"]
[White "Tatsumi, Kai"]
[Black "Kuandykuly, Danis"]
[Result "0-1"]
[TimeControl "45min+10sec"]
[WhiteElo "1154"]
[BlackElo "1738"]

1. e4 {[%clk 00:45:17]} {[%emt 00:00:02]} c5 {[%clk 00:45:19]} {[%emt
00:00:02]} 2. Nf3 {[%clk 00:45:24]} {[%emt 00:00:01]} a6 {[%clk 00:45:28]}
{[%emt 00:00:02]} 3. d4 {[%clk 00:45:27]} {[%emt 00:00:07]} cxd4 {[%clk
00:45:36]} {[%emt 00:00:02]} 4. Nxd4 {[%clk 00:45:35]} {[%emt 00:00:01]} Nf6
{[%clk 00:45:45]} {[%emt 00:00:02]} 5. f3 {[%clk 00:45:06]} {[%emt 00:00:39]}
e5 {[%clk 00:44:55]} {[%emt 00:01:00]} 6. Ne2 {[%clk 00:43:16]} {[%emt
00:02:00]} Bc5 {[%clk 00:44:12]} {[%emt 00:00:52]} 7. Nbc3 {[%clk 00:42:21]}
{[%emt 00:01:06]} Qb6 {[%clk 00:43:38]} {[%emt 00:00:44]} 8. Qd3 {[%clk
00:41:11]} {[%emt 00:01:19]} Bf2+ {[%clk 00:42:09]} {[%emt 00:01:40]} 9. Kd1
{[%clk 00:41:02]} {[%emt 00:00:19]} h6 {[%clk 00:41:47]} {[%emt 00:00:31]} 10.
b3 {[%clk 00:38:47]} {[%emt 00:02:26]} O-O {[%clk 00:41:42]} {[%emt 00:00:14]}
11. Bb2 {[%clk 00:37:58]} {[%emt 00:01:00]} Nc6 {[%clk 00:41:38]} {[%emt
00:00:14]} 12. Nd5 {[%clk 00:37:29]} {[%emt 00:00:38]} Qd8 {[%clk 00:36:35]}
{[%emt 00:05:14]} 13. Nec3 {[%clk 00:33:33]} {[%emt 00:04:06]} d6 {[%clk
00:35:50]} {[%emt 00:00:55]} 14. Be2 {[%clk 00:24:02]} {[%emt 00:09:40]} Be6
{[%clk 00:34:29]} {[%emt 00:01:31]} 15. Rf1 {[%clk 00:20:02]} {[%emt 00:04:10]}
Bd4 {[%clk 00:34:10]} {[%emt 00:00:29]} 16. Nxf6+ {[%clk 00:19:07]} {[%emt
00:01:06]} Qxf6 {[%clk 00:33:57]} {[%emt 00:00:23]} 17. Na4 {[%clk 00:17:55]}
{[%emt 00:01:22]} Bxb2 {[%clk 00:33:05]} {[%emt 00:01:03]} 18. Nxb2 {[%clk
00:18:03]} {[%emt 00:00:02]} d5 {[%clk 00:33:08]} {[%emt 00:00:06]} 19. g3
{[%clk 00:15:07]} {[%emt 00:03:05]} Rac8 {[%clk 00:32:35]} {[%emt 00:00:43]} 20.
Ke1 {[%clk 00:14:54]} {[%emt 00:00:24]} Nb4 {[%clk 00:32:35]} {[%emt 00:00:10]}
21. Qd2 {[%clk 00:14:18]} {[%emt 00:00:41]} Nxc2+ {[%clk 00:32:43]} {[%emt
00:00:07]} 22. Kf2 {[%clk 00:14:24]} {[%emt 00:00:03]} dxe4 {[%clk 00:32:31]}
{[%emt 00:00:23]} 23. Kg2 {[%clk 00:14:01]} {[%emt 00:00:33]} e3 {[%clk
00:32:29]} {[%emt 00:00:12]} 24. Qa5 {[%clk 00:13:22]} {[%emt 00:00:50]} Nxa1
{[%clk 00:32:31]} {[%emt 00:00:07]} 25. Rxa1 {[%clk 00:13:17]} {[%emt
00:00:15]} Rc2 {[%clk 00:32:36]} {[%emt 00:00:05]} 26. Kf1 {[%clk 00:12:57]}
{[%emt 00:00:29]} Bh3+ {[%clk 00:31:53]} {[%emt 00:00:54]} 27. Ke1 {[%clk
00:13:05]} {[%emt 00:00:03]} Rxb2 {[%clk 00:31:47]} {[%emt 00:00:15]} 28. Qc3
{[%clk 00:12:47]} {[%emt 00:00:28]} e4 {[%clk 00:31:19]} {[%emt 00:00:38]} 29.
Qc4 {[%clk 00:12:39]} {[%emt 00:00:18]} Rxe2+ {[%clk 00:31:13]} {[%emt
00:00:16]} 30. Kxe2 {[%clk 00:12:44]} {[%emt 00:00:05]} Qxf3+ {[%clk 00:31:20]}
{[%emt 00:00:03]} 31. Ke1 {[%clk 00:12:50]} {[%emt 00:00:03]} Qf2+ {[%clk
00:31:29]} {[%emt 00:00:02]} 32. Kd1 {[%clk 00:12:58]} {[%emt 00:00:02]} Qd2#
{[%clk 00:31:37]} {[%emt 00:00:02]} 0-1

[Event "FIDE U16 Olympiad_boards_81-124"]
[Site "Eindhoven, Netherlands"]
[Date "2023.08.14"]
[Round "3.12"]
[White "Kholyavko, Mariya"]
[Black "Yamada, Misaki"]
[Result "1-0"]
[TimeControl "45min+10sec"]
[WhiteElo "1757"]
[BlackElo "1462"]

1. e4 {[%clk 00:45:17]} {[%emt 00:00:02]} c5 {[%clk 00:45:17]} {[%emt
00:00:03]} 2. Nf3 {[%clk 00:45:24]} {[%emt 00:00:03]} d6 {[%clk 00:45:25]}
{[%emt 00:00:02]} 3. d4 {[%clk 00:45:31]} {[%emt 00:00:04]} cxd4 {[%clk
00:45:33]} {[%emt 00:00:02]} 4. Nxd4 {[%clk 00:45:38]} {[%emt 00:00:03]} Nf6
{[%clk 00:45:40]} {[%emt 00:00:03]} 5. Nc3 {[%clk 00:45:45]} {[%emt 00:00:02]}
a6 {[%clk 00:45:48]} {[%emt 00:00:03]} 6. Bg5 {[%clk 00:45:51]} {[%emt
00:00:04]} Nbd7 {[%clk 00:45:53]} {[%emt 00:00:05]} 7. f4 {[%clk 00:45:05]}
{[%emt 00:00:56]} Qc7 {[%clk 00:45:55]} {[%emt 00:00:07]} 8. Qe2 {[%clk
00:44:19]} {[%emt 00:00:56]} e6 {[%clk 00:39:08]} {[%emt 00:06:58]} 9. O-O-O
{[%clk 00:42:10]} {[%emt 00:02:19]} Be7 {[%clk 00:37:27]} {[%emt 00:01:51]} 10.
g4 {[%clk 00:41:58]} {[%emt 00:00:21]} h6 {[%clk 00:23:53]} {[%emt 00:13:45]}
11. Bxf6 {[%clk 00:40:56]} {[%emt 00:01:12]} Bxf6 {[%clk 00:23:33]} {[%emt
00:00:30]} 12. Bg2 {[%clk 00:40:10]} {[%emt 00:00:56]} Rb8 {[%clk 00:19:14]}
{[%emt 00:04:29]} 13. h4 {[%clk 00:37:20]} {[%emt 00:03:00]} b5 {[%clk
00:15:16]} {[%emt 00:04:08]} 14. g5 {[%clk 00:35:31]} {[%emt 00:01:58]} Bxd4
{[%clk 00:06:50]} {[%emt 00:08:36]} 15. Rxd4 {[%clk 00:35:38]} {[%emt
00:00:03]} h5 {[%clk 00:03:07]} {[%emt 00:03:54]} 16. Re1 {[%clk 00:34:11]}
{[%emt 00:01:36]} Bb7 {[%clk 00:00:39]} {[%emt 00:02:38]} 17. Red1 {[%clk
00:30:45]} {[%emt 00:03:36]} Rd8 {[%clk 00:00:14]} {[%emt 00:00:36]} 18. Rxd6
{[%clk 00:28:46]} {[%emt 00:02:08]} g6 {[%clk 00:00:12]} {[%emt 00:00:12]} 19.
e5 {[%clk 00:28:34]} {[%emt 00:00:22]} Bxg2 {[%clk 00:00:12]} {[%emt 00:00:10]}
20. Qxg2 {[%clk 00:28:41]} {[%emt 00:00:03]} O-O {[%clk 00:00:12]} {[%emt
00:00:11]} 21. Qd2 {[%clk 00:28:37]} {[%emt 00:00:13]} Nb6 {[%clk 00:00:12]}
{[%emt 00:00:11]} 22. Rxd8 {[%clk 00:28:43]} {[%emt 00:00:04]} Rxd8 {[%clk
00:00:11]} {[%emt 00:00:12]} 23. Qxd8+ {[%clk 00:28:48]} {[%emt 00:00:04]} Qxd8
{[%clk 00:00:18]} {[%emt 00:00:02]} 24. Rxd8+ {[%clk 00:28:55]} Kg7 {[%clk
00:00:26]} {[%emt 00:00:06]} 25. Ne4 {[%clk 00:28:57]} {[%emt 00:00:08]} Nc4
{[%clk 00:00:24]} {[%emt 00:00:12]} 26. Nf6 {[%clk 00:29:02]} {[%emt 00:00:04]}
Ne3 {[%clk 00:00:16]} {[%emt 00:00:19]} 27. Rg8# {[%clk 00:29:10]} {[%emt
00:00:02]} 1-0

[Event "FIDE U16 Olympiad_boards_81-124"]
[Site "Eindhoven, Netherlands"]
[Date "2023.08.14"]
[Round "3.13"]
[White "Antoniou, Rafail"]
[Black "Sinton, Luc"]
[Result "1-0"]
[TimeControl "45min+10sec"]
[WhiteElo "1874"]
[BlackElo "1093"]

1. Nf3 {[%clk 00:45:16]} {[%emt 00:00:04]} c6 {[%clk 00:45:15]} {[%emt
00:00:06]} 2. c4 {[%clk 00:44:46]} {[%emt 00:00:39]} d5 {[%clk 00:44:47]}
{[%emt 00:00:39]} 3. e3 {[%clk 00:43:28]} {[%emt 00:01:28]} Bf5 {[%clk
00:43:36]} {[%emt 00:01:20]} 4. cxd5 {[%clk 00:43:29]} {[%emt 00:00:08]} cxd5
{[%clk 00:41:59]} {[%emt 00:01:48]} 5. Nc3 {[%clk 00:43:33]} {[%emt 00:00:05]}
e6 {[%clk 00:41:42]} {[%emt 00:00:27]} 6. Qb3 {[%clk 00:43:19]} {[%emt
00:00:25]} Qb6 {[%clk 00:38:44]} {[%emt 00:03:08]} 7. Qxb6 {[%clk 00:43:02]}
{[%emt 00:00:27]} axb6 {[%clk 00:38:50]} {[%emt 00:00:03]} 8. Bb5+ {[%clk
00:43:06]} {[%emt 00:00:07]} Nc6 {[%clk 00:38:29]} {[%emt 00:00:30]} 9. O-O
{[%clk 00:42:29]} {[%emt 00:00:48]} Bd6 {[%clk 00:37:46]} {[%emt 00:00:53]} 10.
b3 {[%clk 00:41:40]} {[%emt 00:00:59]} Nf6 {[%clk 00:36:07]} {[%emt 00:01:49]}
11. Nd4 {[%clk 00:41:24]} {[%emt 00:00:26]} Rc8 {[%clk 00:33:41]} {[%emt
00:02:35]} 12. Nxf5 {[%clk 00:40:53]} {[%emt 00:00:42]} exf5 {[%clk 00:32:30]}
{[%emt 00:01:20]} 13. Bb2 {[%clk 00:40:46]} {[%emt 00:00:17]} O-O {[%clk
00:31:59]} {[%emt 00:00:42]} 14. Na4 {[%clk 00:38:32]} {[%emt 00:02:24]} Nd7
{[%clk 00:28:37]} {[%emt 00:03:31]} 15. Rac1 {[%clk 00:37:31]} {[%emt
00:01:12]} Na7 {[%clk 00:27:56]} {[%emt 00:00:50]} 16. Bxd7 {[%clk 00:37:32]}
{[%emt 00:00:10]} Rxc1 {[%clk 00:27:44]} {[%emt 00:00:21]} 17. Rxc1 {[%clk
00:37:39]} {[%emt 00:00:03]} b5 {[%clk 00:27:41]} {[%emt 00:00:14]} 18. Nc3
{[%clk 00:37:42]} {[%emt 00:00:06]} f4 {[%clk 00:25:05]} {[%emt 00:02:47]} 19.
Nxd5 {[%clk 00:37:44]} {[%emt 00:00:08]} fxe3 {[%clk 00:24:48]} {[%emt
00:00:27]} 20. fxe3 {[%clk 00:37:47]} {[%emt 00:00:07]} Rd8 {[%clk 00:24:09]}
{[%emt 00:00:50]} 21. Bg4 {[%clk 00:36:43]} {[%emt 00:01:13]} Bxh2+ {[%clk
00:22:56]} {[%emt 00:01:22]} 22. Kxh2 {[%clk 00:36:12]} {[%emt 00:00:42]} Rxd5
{[%clk 00:23:00]} {[%emt 00:00:06]} 23. Bd4 {[%clk 00:36:17]} {[%emt 00:00:04]}
Nc6 {[%clk 00:22:40]} {[%emt 00:00:31]} 24. Bf3 {[%clk 00:36:23]} {[%emt
00:00:02]} Rd6 {[%clk 00:22:31]} {[%emt 00:00:20]} 25. Bxc6 {[%clk 00:36:29]}
{[%emt 00:00:05]} bxc6 {[%clk 00:22:08]} {[%emt 00:00:33]} 26. a4 {[%clk
00:36:36]} {[%emt 00:00:02]} bxa4 {[%clk 00:19:44]} {[%emt 00:02:35]} 27. bxa4
{[%clk 00:36:44]} {[%emt 00:00:02]} f6 {[%clk 00:19:39]} {[%emt 00:00:16]} 28.
a5 {[%clk 00:36:52]} {[%emt 00:00:01]} Rd8 {[%clk 00:19:48]} 29. a6 {[%clk
00:37:00]} {[%emt 00:00:02]} c5 {[%clk 00:16:51]} {[%emt 00:03:07]} 30. Rxc5
{[%clk 00:36:48]} {[%emt 00:00:22]} 1-0

[Event "FIDE U16 Olympiad_boards_81-124"]
[Site "Eindhoven, Netherlands"]
[Date "2023.08.14"]
[Round "3.17"]
[White "Huang, Zi-Chen"]
[Black "Kurt, Sascha"]
[Result "0-1"]
[TimeControl "45min+10sec"]
[WhiteElo "1492"]
[BlackElo "1800"]

1. e4 {[%clk 00:45:19]} d5 {[%clk 00:45:07]} {[%emt 00:00:14]} 2. exd5 {[%clk
00:45:24]} {[%emt 00:00:04]} Nf6 {[%clk 00:45:16]} 3. d4 {[%clk 00:45:25]}
{[%emt 00:00:10]} Bg4 {[%clk 00:45:24]} {[%emt 00:00:01]} 4. Bb5+ {[%clk
00:45:31]} {[%emt 00:00:04]} Nbd7 {[%clk 00:45:14]} {[%emt 00:00:19]} 5. Be2
{[%clk 00:44:56]} {[%emt 00:00:46]} Bxe2 {[%clk 00:44:58]} {[%emt 00:00:26]} 6.
Qxe2 {[%clk 00:44:41]} {[%emt 00:00:25]} Nxd5 {[%clk 00:44:45]} {[%emt
00:00:23]} 7. c4 {[%clk 00:44:01]} {[%emt 00:00:50]} N5f6 {[%clk 00:44:13]}
{[%emt 00:00:42]} 8. Nf3 {[%clk 00:42:53]} {[%emt 00:01:18]} g6 {[%clk
00:43:26]} {[%emt 00:00:58]} 9. O-O {[%clk 00:41:07]} {[%emt 00:01:55]} c6
{[%clk 00:40:04]} {[%emt 00:03:32]} 10. Nc3 {[%clk 00:38:31]} {[%emt 00:02:46]}
Qc7 {[%clk 00:39:21]} {[%emt 00:00:54]} 11. Re1 {[%clk 00:34:49]} {[%emt
00:03:52]} O-O-O {[%clk 00:38:34]} {[%emt 00:00:57]} 12. a3 {[%clk 00:32:06]}
{[%emt 00:02:52]} e6 {[%clk 00:34:30]} {[%emt 00:04:14]} 13. b4 {[%clk
00:29:04]} {[%emt 00:03:12]} Bg7 {[%clk 00:34:11]} {[%emt 00:00:28]} 14. Ne5
{[%clk 00:26:39]} {[%emt 00:02:36]} Nxe5 {[%clk 00:33:28]} {[%emt 00:00:53]} 15.
dxe5 {[%clk 00:26:18]} {[%emt 00:00:31]} Nd7 {[%clk 00:33:05]} {[%emt
00:00:34]} 16. Bf4 {[%clk 00:23:01]} {[%emt 00:03:27]} Nb6 {[%clk 00:32:24]}
{[%emt 00:00:50]} 17. Qe4 {[%clk 00:20:12]} {[%emt 00:02:57]} Rd7 {[%clk
00:30:49]} {[%emt 00:01:46]} 18. Rad1 {[%clk 00:18:11]} {[%emt 00:02:11]} Rhd8
{[%clk 00:29:55]} {[%emt 00:01:04]} 19. Kf1 {[%clk 00:15:36]} {[%emt 00:02:46]}
Rxd1 {[%clk 00:29:24]} {[%emt 00:00:41]} 20. Rxd1 {[%clk 00:14:47]} {[%emt
00:00:59]} Rxd1+ {[%clk 00:29:32]} {[%emt 00:00:02]} 21. Nxd1 {[%clk 00:14:56]}
{[%emt 00:00:01]} Nd7 {[%clk 00:29:40]} {[%emt 00:00:02]} 22. Qd4 {[%clk
00:10:03]} {[%emt 00:05:03]} b6 {[%clk 00:28:36]} {[%emt 00:01:13]} 23. Qe4
{[%clk 00:06:33]} {[%emt 00:03:41]} Bxe5 {[%clk 00:25:48]} {[%emt 00:02:58]} 24.
Bxe5 {[%clk 00:05:59]} {[%emt 00:00:43]} Nxe5 {[%clk 00:25:12]} {[%emt
00:00:46]} 25. f4 {[%clk 00:05:18]} {[%emt 00:00:51]} Nd7 {[%clk 00:24:30]}
{[%emt 00:00:52]} 26. Ne3 {[%clk 00:03:54]} {[%emt 00:01:36]} Qd6 {[%clk
00:23:56]} {[%emt 00:00:43]} 27. Ke2 {[%clk 00:03:02]} {[%emt 00:01:03]} Nf6
{[%clk 00:23:31]} {[%emt 00:00:35]} 28. Qf3 {[%clk 00:02:37]} {[%emt 00:00:36]}
Kc7 {[%clk 00:22:27]} {[%emt 00:01:13]} 29. g4 {[%clk 00:02:06]} {[%emt
00:00:41]} Qd4 {[%clk 00:21:37]} {[%emt 00:01:00]} 30. f5 {[%clk 00:01:07]}
{[%emt 00:01:09]} gxf5 {[%clk 00:18:34]} {[%emt 00:03:13]} 31. gxf5 {[%clk
00:00:48]} {[%emt 00:00:28]} e5 {[%clk 00:16:49]} {[%emt 00:01:56]} 32. Qg3
{[%clk 00:00:15]} {[%emt 00:00:43]} Ne4 {[%clk 00:16:13]} {[%emt 00:00:45]} 33.
Qg8 {[%clk 00:00:11]} {[%emt 00:00:15]} Nc3+ {[%clk 00:16:06]} {[%emt
00:00:17]} 34. Kf3 {[%clk 00:00:11]} {[%emt 00:00:09]} Qf4+ {[%clk 00:15:47]}
{[%emt 00:00:30]} 35. Kg2 {[%clk 00:00:19]} {[%emt 00:00:02]} Qe4+ {[%clk
00:15:19]} {[%emt 00:00:38]} 36. Kf2 {[%clk 00:00:23]} {[%emt 00:00:06]} Qh4+
{[%clk 00:15:18]} {[%emt 00:00:10]} 37. Kg2 {[%clk 00:00:15]} {[%emt 00:00:19]}
Qf6 {[%clk 00:14:34]} {[%emt 00:00:53]} 38. Qxh7 {[%clk 00:00:13]} {[%emt
00:00:13]} Qg5+ {[%clk 00:13:57]} {[%emt 00:00:47]} 39. Kf2 {[%clk 00:00:11]}
{[%emt 00:00:12]} Ne4+ {[%clk 00:13:58]} {[%emt 00:00:09]} 40. Kf3 {[%clk
00:00:11]} {[%emt 00:00:10]} Qf4+ {[%clk 00:12:25]} {[%emt 00:01:43]} 41. Ke2
{[%clk 00:00:14]} {[%emt 00:00:06]} Qf2+ {[%clk 00:12:30]} {[%emt 00:00:06]} 42.
Kd3 {[%clk 00:00:14]} {[%emt 00:00:07]} Nd6 {[%clk 00:12:36]} {[%emt 00:00:07]}
43. c5 {[%clk 00:00:11]} {[%emt 00:00:13]} bxc5 {[%clk 00:12:13]} {[%emt
00:00:33]} 44. bxc5 {[%clk 00:00:11]} {[%emt 00:00:11]} e4+ {[%clk 00:12:05]}
{[%emt 00:00:18]} 45. Kc3 {[%clk 00:00:14]} {[%emt 00:00:06]} Qxe3+ {[%clk
00:12:12]} {[%emt 00:00:03]} 46. Kb4 {[%clk 00:00:17]} {[%emt 00:00:07]} Qd4+
{[%clk 00:12:18]} {[%emt 00:00:04]} 47. Kb3 {[%clk 00:00:17]} {[%emt 00:00:09]}
Qxc5 {[%clk 00:12:22]} {[%emt 00:00:07]} 0-1

[Event "FIDE U16 Olympiad_boards_81-124"]
[Site "Eindhoven, Netherlands"]
[Date "2023.08.14"]
[Round "3.18"]
[White "Grooten, Tommy"]
[Black "Lai, Hong-Yi"]
[Result "1/2-1/2"]
[TimeControl "45min+10sec"]
[WhiteElo "1908"]
[BlackElo "1469"]

1. c4 {[%clk 00:45:19]} Nf6 {[%clk 00:45:17]} {[%emt 00:00:04]} 2. Nc3 {[%clk
00:45:17]} {[%emt 00:00:12]} e6 {[%clk 00:45:24]} {[%emt 00:00:03]} 3. d4
{[%clk 00:45:20]} {[%emt 00:00:07]} d5 {[%clk 00:45:28]} {[%emt 00:00:05]} 4.
Nf3 {[%clk 00:45:21]} {[%emt 00:00:10]} c5 {[%clk 00:45:34]} {[%emt 00:00:02]}
5. Bg5 {[%clk 00:44:52]} {[%emt 00:00:40]} cxd4 {[%clk 00:41:08]} {[%emt
00:04:36]} 6. Nxd4 {[%clk 00:44:28]} {[%emt 00:00:32]} Be7 {[%clk 00:38:31]}
{[%emt 00:02:49]} 7. g3 {[%clk 00:43:44]} {[%emt 00:00:55]} O-O {[%clk
00:38:06]} {[%emt 00:00:34]} 8. Bg2 {[%clk 00:42:46]} {[%emt 00:01:08]} e5
{[%clk 00:35:31]} {[%emt 00:02:45]} 9. Nf3 {[%clk 00:38:04]} {[%emt 00:04:52]}
d4 {[%clk 00:34:28]} {[%emt 00:01:14]} 10. Bxf6 {[%clk 00:37:14]} {[%emt
00:00:59]} Bxf6 {[%clk 00:33:39]} {[%emt 00:00:59]} 11. Ne4 {[%clk 00:36:08]}
{[%emt 00:01:16]} Nc6 {[%clk 00:31:54]} {[%emt 00:01:56]} 12. h3 {[%clk
00:34:25]} {[%emt 00:01:53]} Be7 {[%clk 00:30:25]} {[%emt 00:01:39]} 13. g4
{[%clk 00:33:57]} {[%emt 00:00:39]} f5 {[%clk 00:26:06]} {[%emt 00:04:29]} 14.
gxf5 {[%clk 00:33:58]} {[%emt 00:00:09]} Bxf5 {[%clk 00:26:11]} {[%emt
00:00:04]} 15. Nfd2 {[%clk 00:33:32]} {[%emt 00:00:35]} d3 {[%clk 00:23:24]}
{[%emt 00:02:58]} 16. O-O {[%clk 00:25:07]} {[%emt 00:08:35]} Qd7 {[%clk
00:20:27]} {[%emt 00:03:07]} 17. exd3 {[%clk 00:20:33]} {[%emt 00:04:45]} Bxh3
{[%clk 00:18:37]} {[%emt 00:02:00]} 18. Qh5 {[%clk 00:19:15]} {[%emt 00:01:27]}
Bg4 {[%clk 00:17:52]} {[%emt 00:00:55]} 19. Qh2 {[%clk 00:16:40]} {[%emt
00:02:45]} Nd4 {[%clk 00:12:22]} {[%emt 00:05:40]} 20. Rfe1 {[%clk 00:11:59]}
{[%emt 00:04:51]} Ne2+ {[%clk 00:08:15]} {[%emt 00:04:17]} 21. Rxe2 {[%clk
00:12:07]} {[%emt 00:00:02]} Bxe2 {[%clk 00:08:23]} {[%emt 00:00:02]} 22. Re1
{[%clk 00:11:27]} {[%emt 00:00:49]} Bxd3 {[%clk 00:07:47]} {[%emt 00:00:47]} 23.
Re3 {[%clk 00:09:14]} {[%emt 00:02:23]} Rf4 {[%clk 00:05:36]} {[%emt 00:02:21]}
24. Qh5 {[%clk 00:05:22]} {[%emt 00:04:02]} Bxe4 {[%clk 00:03:46]} {[%emt
00:02:01]} 25. Bxe4 {[%clk 00:04:14]} {[%emt 00:01:18]} Qg4+ {[%clk 00:03:51]}
{[%emt 00:00:05]} 26. Qxg4 {[%clk 00:04:12]} {[%emt 00:00:12]} Rxg4+ {[%clk
00:04:00]} {[%emt 00:00:01]} 27. Kf1 {[%clk 00:03:59]} {[%emt 00:00:23]} Bg5
{[%clk 00:02:55]} {[%emt 00:01:15]} 28. Bd5+ {[%clk 00:03:31]} {[%emt
00:00:39]} Kf8 {[%clk 00:03:01]} {[%emt 00:00:03]} 29. Rf3+ {[%clk 00:02:53]}
{[%emt 00:00:48]} Rf4 {[%clk 00:02:59]} {[%emt 00:00:12]} 30. Rb3 {[%clk
00:02:48]} {[%emt 00:00:16]} Rb8 {[%clk 00:02:44]} {[%emt 00:00:23]} 31. Ne4
{[%clk 00:02:39]} {[%emt 00:00:20]} Be7 {[%clk 00:02:35]} {[%emt 00:00:18]} 32.
Nc3 {[%clk 00:01:58]} {[%emt 00:00:53]} b6 {[%clk 00:02:35]} {[%emt 00:00:09]}
33. Nb5 {[%clk 00:02:00]} {[%emt 00:00:08]} Bc5 {[%clk 00:02:31]} {[%emt
00:00:13]} 34. f3 {[%clk 00:02:06]} {[%emt 00:00:06]} h5 {[%clk 00:02:20]}
{[%emt 00:00:20]} 35. Nc7 {[%clk 00:02:10]} {[%emt 00:00:06]} Re8 {[%clk
00:01:23]} {[%emt 00:01:06]} 36. Nxe8 {[%clk 00:02:02]} {[%emt 00:00:20]} Kxe8
{[%clk 00:01:31]} {[%emt 00:00:01]} 37. Kg2 {[%clk 00:01:59]} {[%emt 00:00:14]}
Ke7 {[%clk 00:01:31]} {[%emt 00:00:08]} 38. Rd3 {[%clk 00:01:35]} {[%emt
00:00:35]} Bd4 {[%clk 00:01:30]} {[%emt 00:00:12]} 39. Rd2 {[%clk 00:01:30]}
{[%emt 00:00:14]} g5 {[%clk 00:01:21]} {[%emt 00:00:18]} 40. Re2 {[%clk
00:01:10]} {[%emt 00:00:31]} Kf6 {[%clk 00:01:25]} {[%emt 00:00:05]} 41. b4
{[%clk 00:00:53]} {[%emt 00:00:29]} h4 {[%clk 00:01:13]} {[%emt 00:00:22]} 42.
Re4 {[%clk 00:00:22]} {[%emt 00:00:40]} Rxe4 {[%clk 00:01:13]} {[%emt
00:00:10]} 43. Bxe4 {[%clk 00:00:30]} {[%emt 00:00:02]} Ke7 {[%clk 00:01:08]}
{[%emt 00:00:16]} 44. Kh3 {[%clk 00:00:34]} {[%emt 00:00:07]} Kf6 {[%clk
00:01:15]} {[%emt 00:00:02]} 45. Kg4 {[%clk 00:00:43]} {[%emt 00:00:01]}
1/2-1/2

[Event "FIDE U16 Olympiad_boards_81-124"]
[Site "Eindhoven, Netherlands"]
[Date "2023.08.14"]
[Round "3.19"]
[White "Sun, Chang-Jyu"]
[Black "Feng, Elysia"]
[Result "0-1"]
[TimeControl "45min+10sec"]
[WhiteElo "1238"]
[BlackElo "1635"]

1. e4 {[%clk 00:45:19]} e5 {[%clk 00:45:20]} 2. Nc3 {[%clk 00:45:28]} {[%emt
00:00:01]} Bc5 {[%clk 00:45:26]} {[%emt 00:00:04]} 3. f4 {[%clk 00:45:23]}
{[%emt 00:00:16]} d6 {[%clk 00:45:15]} {[%emt 00:00:20]} 4. Nf3 {[%clk
00:45:25]} {[%emt 00:00:08]} Nc6 {[%clk 00:45:24]} {[%emt 00:00:01]} 5. Bb5
{[%clk 00:45:30]} {[%emt 00:00:05]} Bd7 {[%clk 00:44:31]} {[%emt 00:01:04]} 6.
Bxc6 {[%clk 00:44:07]} {[%emt 00:01:33]} Bxc6 {[%clk 00:44:36]} {[%emt
00:00:04]} 7. fxe5 {[%clk 00:44:15]} {[%emt 00:00:01]} dxe5 {[%clk 00:44:45]}
{[%emt 00:00:02]} 8. Nxe5 {[%clk 00:44:23]} {[%emt 00:00:01]} Qd4 {[%clk
00:43:23]} {[%emt 00:01:32]} 9. Nd3 {[%clk 00:44:31]} {[%emt 00:00:03]} Bb6
{[%clk 00:42:18]} {[%emt 00:01:13]} 10. Qe2 {[%clk 00:40:55]} {[%emt 00:03:47]}
O-O-O {[%clk 00:40:23]} {[%emt 00:02:06]} 11. Nf2 {[%clk 00:38:40]} {[%emt
00:02:25]} f5 {[%clk 00:39:46]} {[%emt 00:00:47]} 12. d3 {[%clk 00:38:32]}
{[%emt 00:00:17]} fxe4 {[%clk 00:37:17]} {[%emt 00:02:40]} 13. Nfxe4 {[%clk
00:31:41]} {[%emt 00:07:01]} Nf6 {[%clk 00:36:19]} {[%emt 00:01:08]} 14. Rf1
{[%clk 00:20:25]} {[%emt 00:11:26]} Rhe8 {[%clk 00:35:53]} {[%emt 00:00:36]} 15.
Rf4 {[%clk 00:19:34]} {[%emt 00:00:59]} g5 {[%clk 00:30:00]} {[%emt 00:06:05]}
16. Rxf6 {[%clk 00:17:24]} {[%emt 00:02:20]} Bxe4 {[%clk 00:29:59]} {[%emt
00:00:10]} 17. Nxe4 {[%clk 00:16:48]} {[%emt 00:00:47]} Rxe4 {[%clk 00:29:39]}
{[%emt 00:00:30]} 18. dxe4 {[%clk 00:12:04]} {[%emt 00:04:54]} Qxf6 {[%clk
00:29:44]} {[%emt 00:00:05]} 19. e5 {[%clk 00:12:12]} {[%emt 00:00:02]} Qf5
{[%clk 00:28:34]} {[%emt 00:01:20]} 20. g4 {[%clk 00:09:55]} {[%emt 00:02:27]}
Qg6 {[%clk 00:27:24]} {[%emt 00:01:20]} 21. Be3 {[%clk 00:08:29]} {[%emt
00:01:36]} Bxe3 {[%clk 00:22:10]} {[%emt 00:05:24]} 22. Qxe3 {[%clk 00:08:38]}
{[%emt 00:00:01]} Qxc2 {[%clk 00:22:18]} {[%emt 00:00:02]} 23. Qe2 {[%clk
00:08:46]} {[%emt 00:00:01]} Qc5 {[%clk 00:20:52]} {[%emt 00:01:37]} 24. Kf1
{[%clk 00:08:05]} {[%emt 00:00:51]} Rf8+ {[%clk 00:18:23]} {[%emt 00:02:39]} 25.
Kg2 {[%clk 00:08:12]} {[%emt 00:00:03]} Rf4 {[%clk 00:15:51]} {[%emt 00:02:43]}
26. Re1 {[%clk 00:06:23]} {[%emt 00:01:59]} Qd5+ {[%clk 00:15:57]} {[%emt
00:00:03]} 27. Kg3 {[%clk 00:06:23]} {[%emt 00:00:07]} Qe6 {[%clk 00:13:44]}
{[%emt 00:02:26]} 28. Qd3 {[%clk 00:05:21]} {[%emt 00:01:12]} Qxg4# {[%clk
00:13:48]} {[%emt 00:00:06]} 0-1